Workbook

Sheet Учебный план
A1: 2. План учебного процесса
A2: Индекс | B2: Наименование циклов, дисциплин, профессиональных модулей, МДК, практик | C2: Формы промежуточной аттестации | F2: Объем образовательной нагрузки | G2: Учебная нагрузка обучающихся (час.) | P2: Распределение учебной нагрузки по курсам и семестрам (час. в семестр)
G3: Самостоятельная учебная работа | H3: Во взаимодействии с преподавателем | P3: I курс | R3: II курс | T3: III курс | V3: IV курс
C4: Зачеты | D4: Дифференцированные зачеты | E4: Экзамены | H4: Нагрузка на дисциплины и МДК | M4: По практике производственной и учебной | N4: Консультации | O4: Промежуточная аттестация | P4: 1 сем. | Q4: 2 сем. | R4: 3 сем. | S4: 4 сем. | T4: 5 сем. | U4: 6 сем. | V4: 7 сем. | W4: 8 сем.
H5: Всего учебных занятий | J5: по учебным дисциплинам и МДК | P5: 17 нед. | Q5: 24 нед. | R5: 17 нед. | S5: 24 нед. | T5: 17 нед. | U5: 25 нед. | V5: 17 нед. | W5: 24 нед.
I6: в т.ч. в форме прак. подг. | J6: теоретического обучения | K6: лаб. и практ. занятий | L6: курсовых работ (проектов) | P6: (17 нед. т/о+ПА) | Q6: (24 нед. т/о+ ПА) | R6: (15 нед. т/о+2нед. УП) | S6: (17 нед. т/о+2 нед. УП+5 нед. ПП+ПА) | T6: (16 нед. т/о+1 нед. УП+ ПА) | U6: (17 нед. т/о+4 нед. УП+4 нед. ПП+ПА) | V6: (15 нед. т/о+2 нед. УП+ПА) | W6: (7нед. т/о+1 нед. УП+6нед. ПП+4 нед. ПДП+ПА+6 нед. ГИА)
A7: 1 | B7: 2 | C7: 3 | D7: 4 | E7: 5 | F7: 6 | G7: 7 | H7: 8 | J7: 9 | K7: 10 | L7: 11 | M7: 12 | N7: 13 | O7: 14 | P7: 15 | Q7: 16 | R7: 17 | S7: 18 | T7: 19 | U7: 20 | V7: 21 | W7: 22
A8: О.00 | B8: Общеобразовательные учебные дисциплины | C8: 0 | D8: 7 | E8: 6 | F8: 1476 | G8: 0 | H8: 1404 | I8: 26 | J8: 980 | K8: 424 | N8: 36 | O8: 36 | P8: 612 | Q8: 864
A9: ОУД.01 | B9: Русский язык | E9: 2 | F9: 90 | G9: 0 | H9: 78 | J9: 66 | K9: 12 | N9: 6 | O9: 6 | P9: 34 | Q9: 56
A10: ОУД.02 | B10: Литература | D10: 2 | F10: 108 | G10: 0 | H10: 108 | J10: 98 | K10: 10 | P10: 60 | Q10: 48
A11: ОУД.03 | B11: Иностранный язык | D11: 2 | F11: 72 | G11: 0 | H11: 72 | J11: 30 | K11: 42 | P11: 54 | Q11: 18
A12: ОУД.04 | B12: Математика | E12: 2 | F12: 246 | G12: 0 | H12: 234 | I12: 10 | J12: 174 | K12: 60 | N12: 6 | O12: 6 | P12: 56 | Q12: 190
A13: ОУД.05 | B13: История | D13: 2 | F13: 134 | G13: 0 | H13: 134 | J13: 112 | K13: 22 | P13: 52 | Q13: 82
A14: ОУД.06 | B14: Физическая культура | C14: 1 | D14: 2 | F14: 76 | G14: 0 | H14: 76 | J14: 4 | K14: 72 | P14: 30 | Q14: 46
A15: ОУД.07 | B15: Основы безопасности жизнедеятельности | D15: 2 | F15: 70 | G15: 0 | H15: 70 | J15: 20 | K15: 50 | P15: 34 | Q15: 36
A16: ОУД.08 | B16: География | D16: 2 | F16: 72 | G16: 0 | H16: 72 | J16: 46 | K16: 26 | P16: 54 | Q16: 18
A17: ОУД.09 | B17: Информатика | E17: 2 | F17: 84 | G17: 0 | H17: 72 | I17: 10 | J17: 50 | K17: 22 | N17: 6 | O17: 6 | P17: 44 | Q17: 40
A18: ОУД.10 | B18: Физика | E18: 2 | F18: 146 | G18: 0 | H18: 134 | I18: 6 | J18: 88 | K18: 46 | N18: 6 | O18: 6 | P18: 52 | Q18: 94
A19: ОУД.11 | B19: Обществознание | D19: 2 | F19: 70 | G19: 0 | H19: 70 | J19: 58 | K19: 12 | P19: 36 | Q19: 34
A20: ОУД.12 | B20: Химия | E20: 2 | F20: 84 | G20: 0 | H20: 72 | J20: 52 | K20: 20 | N20: 6 | O20: 6 | P20: 44 | Q20: 40
A21: ОУД.13 | B21: Биология | E21: 2 | F21: 146 | G21: 0 | H21: 134 | J21: 120 | K21: 14 | N21: 6 | O21: 6 | P21: 28 | Q21: 118
A22: ОУД.14 | B22: Родной язык | D22: 2 | F22: 78 | G22: 0 | H22: 78 | J22: 62 | K22: 16 | P22: 34 | Q22: 44
B27: Индивидуальный проект
A28: СГД. 00 | B28: Социально-гуманитарные дисциплины | C28: 0 | D28: 4 | E28: 0 | F28: =SUM(F29:F33) -> 510 | G28: =SUM(G29:G33) -> 22 | H28: =SUM(H29:H33) -> 488 | I28: 0 | J28: =SUM(J29:J33) -> 74 | K28: 414 | L28: 0 | M28: 0 | N28: 0 | O28: 0 | P28: 0 | Q28: 0 | R28: 142 | S28: 36 | T28: 40 | U28: 64 | V28: 132 | W28: 96
A29: СГД.01 | B29: История России | D29: 3 | F29: 46 | G29: 10 | H29: 36 | J29: 30 | K29: 6 | R29: 46
A30: СГД.02 | B30: Иностранный язык в профессиональной деятельности | D30: 8 | F30: 180 | H30: 180 | K30: 180 | R30: 30 | S30: 22 | T30: 20 | U30: 32 | V30: 62 | W30: 14
A31: СГД.03 | B31: Безопасность жизнедеятельности | D31: 8 | F31: 68 | G31: 12 | H31: 56 | J31: 16 | K31: 40 | W31: 68
A32: СГД.04 | B32: Физическая культура | C32: 3-7 | D32: 8 | F32: 180 | H32: 180 | K32: 180 | R32: 30 | S32: 14 | T32: 20 | U32: 32 | V32: 70 | W32: 14
A33: СГДВ.01 | B33: Русский язык и культура речи | D33: 3 | F33: 36 | H33: =J33+K33 -> 36 | J33: 28 | K33: 8 | R33: 36
A34: ОП.00 | B34: Общепрофессиональные дисциплины | C34: 0 | D34: 12 | E34: 4 | F34: 1032 | G34: =SUM(G35:G50) -> 94 | H34: 898 | I34: 112 | J34: =SUM(J35:J50) -> 480 | K34: 418 | L34: 0 | M34: 0 | N34: 16 | O34: 24 | P34: 0 | Q34: 0 | R34: 276 | S34: 274 | T34: 72 | U34: 36 | V34: 338 | W34: 36
A35: ОП.01 | B35: Математические методы решения прикладных профессиональных задач | D35: 4 | F35: 72 | H35: 72 | J35: 36 | K35: 36 | R35: 36 | S35: 36
A36: ОП.02 | B36: Экологические основы природопользования | D36: 7 | F36: 48 | G36: 12 | H36: 36 | J36: 18 | K36: 18 | V36: 48
A37: ОП.03 | B37: Инженерная графика | D37: 4 | F37: 132 | G37: 14 | H37: 118 | I37: 40 | J37: 12 | K37: 106 | R37: 72 | S37: 60
A38: ОП.04 | B38: Техническая механика | E38: 7 | F38: 128 | G38: 12 | H38: 106 | I38: 30 | J38: 58 | K38: 48 | N38: 4 | O38: 6 | V38: 128
A39: ОП.05 | B39: Материаловедение | E39: 4 | F39: 100 | G39: 12 | H39: 78 | I39: 10 | J39: 60 | K39: 18 | N39: 4 | O39: 6 | R39: 48 | S39: 52
A40: ОП.06 | B40: Электротехника и электроника | E40: 4 | F40: 98 | G40: 12 | H40: 76 | J40: 48 | K40: 28 | N40: 4 | O40: 6 | R40: 44 | S40: 54
A41: ОП.07 | B41: Основы гидравлики и теплотехники | D41: 5 | F41: 36 | G41: 6 | H41: 30 | I41: 4 | J41: 22 | K41: 8 | T41: 36
A42: ОП.08 | B42: Основы агрономии | D42: 4 | F42: 36 | G42: 4 | H42: 32 | I42: 2 | J42: 24 | K42: 8 | S42: 36
A43: ОП.09 | B43: Основы зоотехнии | D43: 7 | F43: 36 | G43: 10 | H43: 26 | I43: 2 | J43: 20 | K43: 6 | V43: 36
A44: ОП.10 | B44: Информационные технологии в профессиональной деятельности | D44: 5 | F44: 36 | H44: 36 | I44: 20 | J44: 12 | K44: 24 | T44: 36
A45: ОП.11 | B45: Основы взаимозаменяемости и технические измерения | D45: 7 | F45: 54 | H45: 54 | J45: 40 | K45: 14 | V45: 54
A46: ОП.12 | B46: Основы экономики, менеджмента и маркетинга | E46: 8 | F46: 72 | G46: 12 | H46: 50 | J46: 34 | K46: 16 | N46: 4 | O46: 6 | V46: 36 | W46: 36
A47: ОП.13 | B47: Правовые основы профессиональной деятельности и охрана труда | D47: 4 | F47: 72 | H47: 72 | J47: 48 | K47: 24 | R47: 36 | S47: 36
A48: ОП.В. 01 | B48: Топливо и смазочные материалы | D48: 6 | F48: 36 | H48: 36 | I48: 4 | J48: 18 | K48: 18 | U48: 36
A49: ОП.В.02 | B49: Компьютерная графика | D49: 7 | F49: 36 | H49: 36 | K49: 36 | V49: 36
A50: ОП.В.03 | B50: Основы финансовой грамотности | D50: 3 | F50: 40 | H50: 40 | J50: 30 | K50: 10 | R50: 40
A51: П.00 | B51: Профессиональный модули | C51: 0 | D51: 14 | E51: =E52+E58+E66+E72 -> 7 | F51: 2706 | G51: =G52+G58+G66+G72 -> 78 | H51: =H52+H58+H66+H72 -> 1410 | I51: 154 | J51: 820 | K51: =K52+K58+K66+K72 -> 550 | L51: 40 | M51: 972 | N51: 42 | O51: 60 | P51: 0 | Q51: 0 | R51: 194 | S51: 554 | T51: 500 | U51: 800 | V51: 142 | W51: 372
A52: ПМ.01 | B52: Эксплуатация сельскохозяйственной техники и оборудования | C52: 0 | D52: 3 | E52: 2 | F52: 594 | G52: 18 | H52: 222 | I52: 30 | J52: 136 | K52: 66 | L52: =SUM(L53:L56) -> 20 | M52: =SUM(M53:M56) -> 324 | N52: 12 | O52: 18 | P52: =SUM(P53:P56) -> 0 | Q52: =SUM(Q53:Q56) -> 0 | R52: =SUM(R53:R56) -> 194 | S52: 400 | T52: =SUM(T53:T56) -> 0 | U52: =SUM(U53:U56) -> 0 | V52: =SUM(V53:V56) -> 0 | W52: =SUM(W53:W56) -> 0
A53: МДК. 01.01 | B53: Назначение и общее устройство тракторов, автомобилей и сельскохозяйственных машин | E53: 4 | F53: 178 | G53: 12 | H53: 154 | I53: 20 | J53: 100 | K53: 54 | N53: 6 | O53: 6 | R53: 86 | S53: 92
A54: МДК. 01.02 | B54: Комплектование машинно-тракторного агрегата для выполнения сельскохозяйственных работ | D54: 4 | F54: 74 | G54: 6 | H54: 68 | I54: 10 | J54: 36 | K54: 12 | L54: 20 | R54: 36 | S54: 38
A55: УП.01 | B55: Учебная практика | D55: 4 | F55: 144 | M55: 144 | R55: 72 | S55: 72
A56: ПП.01 | B56: Производственная практика | D56: 4 | F56: 180 | M56: 180 | S56: 180
A57: ПМ.01.Э | B57: Экзамен помодулю | E57: 4 | F57: 18 | N57: 6 | O57: 12 | S57: 18
A58: ПМ.02 | B58: Ремонт сельскохозяйственной техники и оборудования | C58: 0 | D58: 4 | E58: 3 | F58: 936 | G58: =SUM(G59:G64) -> 24 | H58: 474 | I58: 38 | J58: =SUM(J59:J64) -> 280 | K58: 174 | L58: 20 | M58: 396 | N58: 18 | O58: 24 | P58: 0 | Q58: 0 | R58: 0 | S58: 56 | T58: =SUM(T59:T64) -> 150 | U58: =SUM(U59:U64) -> 216 | V58: =SUM(V59:V64) -> 142 | W58: 372
A59: МДК. 02.01 | B59: Система технического обслуживания и ремонта сельскохозяйственных машин и механизмов | E59: 5 | F59: 148 | H59: 136 | I59: 10 | J59: 58 | K59: 78 | N59: 6 | O59: 6 | S59: 56 | T59: 92
A60: МДК. 02.02 | B60: Технологические процессы ремонтного производства | E60: 6 | F60: 148 | G60: 24 | H60: 112 | I60: 20 | J60: 60 | K60: 32 | L60: 20 | N60: 6 | O60: 6 | T60: 58 | U60: 90
A61: МДК. 02.03 | B61: Технология механизированных работ в растениеводстве | D61: 8 | F61: 142 | H61: 142 | I61: 4 | J61: 90 | K61: 52 | U61: 54 | V61: 62 | W61: 26
A62: МДК. 02.04 | B62: Технология механизированных работ в животноводстве | D62: 8 | F62: 84 | H62: 84 | I62: 4 | J62: 72 | K62: 12 | V62: 8 | W62: 76
A63: УП.02 | B63: Учебная практика | D63: 8 | F63: 180 | M63: 180 | U63: 72 | V63: 72 | W63: 36
A64: ПП.02 | B64: Производственная практика | D64: 8 | F64: 216 | M64: 216 | W64: 216
A65: ПМ.02.Э | B65: Экзамен по модулю | E65: 8 | F65: 18 | N65: 6 | O65: 12 | W65: 18
A66: ПМ.03 | B66: Выполнение работ по одной или нескольким профессиям рабочих, должностям служащих: 19205 Тракторист-машинист сельскохозяйственного производства | C66: 0 | D66: 3 | E66: 1 | F66: 430 | G66: =SUM(G67:G70) -> 0 | H66: =SUM(H67:H70) -> 274 | I66: 40 | J66: =SUM(J67:J70) -> 116 | K66: 158 | L66: 0 | M66: 144 | N66: 6 | O66: 6 | P66: 0 | Q66: 0 | R66: 0 | S66: 98 | T66: 116 | U66: 216 | V66: 0 | W66: 0
A67: МДК. 03.01 | B67: Теоретическая подготовка трактористов-машинистов сельскохозяйственного производства В,С,D,Е,F | D67: 6 | F67: 148 | H67: 148 | I67: 30 | J67: 50 | K67: 98 | S67: 58 | T67: 44 | U67: 46
A68: МДК. 03.02 | B68: Слесарные работы и технические измерения | D68: 6 | F68: 126 | H68: 126 | I68: 10 | J68: 66 | K68: 60 | S68: 40 | T68: 36 | U68: 50
A69: УП.03 | B69: Учебная практика | D69: 6 | F69: 72 | M69: 72 | T69: 36 | U69: 36
A70: ПП.03 | B70: Производственная практика | F70: 72 | M70: 72 | U70: 72
A71: ПМ.03.ЭК | B71: Квалификационный экзамен | E71: 6 | F71: 12 | N71: 6 | O71: 6 | U71: 12
A72: ПМ.04 | B72: Выполнение работ по одной или нескольким профессиям рабочих, должностям служащих: 11442 Водитель автомобиля | C72: 0 | D72: 4 | E72: 1 | F72: 602 | G72: =SUM(G73:G77) -> 36 | H72: 440 | I72: 46 | J72: =SUM(J73:J77) -> 288 | K72: 152 | L72: 0 | M72: 108 | N72: 6 | O72: 12 | P72: 0 | Q72: 0 | R72: 0 | S72: 0 | T72: 234 | U72: 368 | V72: 0 | W72: 0
A73: МДК. 04.01 | B73: Теоретическая подготовка водителей автомобилей категории В и С | D73: 6 | F73: 206 | G73: 12 | H73: 194 | I73: 32 | J73: 128 | K73: 66 | T73: 100 | U73: 106
A74: МДК. 04.02 | B74: Организация и выполнение пассажирских и грузовых перевозок на автомобильном транспорте | D74: 6 | F74: 90 | G74: 12 | H74: 78 | I74: 4 | J74: 60 | K74: 18 | T74: 54 | U74: 36
A75: МДК. 04.03 | B75: Техническое обслуживание и ремонт автомобиля | D75: 6 | F75: 180 | G75: 12 | H75: 168 | I75: 10 | J75: 100 | K75: 68 | T75: 80 | U75: 100
A76: УП.04 | B76: Учебная практика | D76: 6 | F76: 36 | M76: 36 | U76: 36
A77: ПП.04 | B77: Производственная практика | F77: 72 | M77: 72 | U77: 72
A78: ПМ.04.ЭК | B78: Квалификационный экзамен | E78: 6 | F78: 18 | N78: 6 | O78: 12 | U78: 18
A79: ПДП | B79: Преддипломная практика | F79: 144 | W79: 4нед.
A80: ГИА | B80: Государственная итоговая аттестация | F80: 216 | W80: 6нед.
A81: Итого | C81: 0 | D81: 37 | E81: 17 | F81: 5940 | G81: 194 | H81: 4200 | I81: 292 | J81: 2354 | K81: 1806 | L81: 40 | M81: 972 | N81: 94 | O81: 120 | P81: 612 | Q81: 864 | R81: 612 | S81: 864 | T81: 612 | U81: 900 | V81: 612 | W81: 648
H83: Всего | J83: часов дисциплин и МДК | P83: 612 | Q83: 864 | R83: 540 | S83: 612 | T83: 576 | U83: 612 | V83: 540 | W83: 252
A84: Государственная (итоговая) атестация | J84: часов учебной практики | R84: 72 | S84: =S55 -> 72 | T84: 36 | U84: 144 | V84: 72 | W84: 36
A85: 1.1. Дипломный проект (работа) | J85: часов производств. практики | S85: =S56 -> 180 | U85: 144 | W85: 216
A86: Выполнение дипломного проекта (работы) - (всего 4 нед.) | J86: часов преддиплом. практики | W86: 144
A87: Защита дипломного проекта (работы) - (всего 2 нед.) | J87: кол.-во экзаменов | Q87: 6 | S87: 4 | T87: 1 | U87: 3 | V87: 1 | W87: 2
A88: 1.2. Выполнение демонстрационного экзамена | J88: кол.-во дифф. зачетов | Q88: 7 | R88: 3 | S88: 7 | T88: 2 | U88: 8 | V88: 4 | W88: 6
J89: кол.-во зачетов

Sheet Базисный
A1: Базисный учебный план образовательной программы СПО 35.02.16 Эксплуатация и ремонт сельскохозяйственной техники и оборудования
A2: Индекс | B2: Наименование циклов, дисциплин, профессиональных модулей, МДК, практик | C2: Объем образовательной нагрузки, час | D2: Обязательная часть ОП, час | F2: Вариативная часть ОП, час | H2: Общеобразовательная подготовка, час
D3: Учебные занятия | E3: Консультации + экзамены | F3: Учебные занятия | G3: Консультации + экзамены | H3: Учебные занятия | I3: Консультации + экзамены
A4: 1 | B4: 2 | C4: 3 | D4: 4 | F4: 5 | H4: 6
A5: ОУД.00 | B5: Общеобразовательные учебные дисциплины | C5: 1476 | D5: 0 | E5: 0 | F5: 0 | G5: 0 | H5: 1404 | I5: 48+24
B6: Общие дисциплины | C6: 1016 | H6: 976
A7: ОУД.01 | B7: Русский язык | C7: 90 | H7: 78 | I7: 6+6
A8: ОУД.02 | B8: Литература | C8: 148 | H8: 144 | I8: 4+0
A9: ОУД.03 | B9: Иностранный язык | C9: 158 | H9: 154 | I9: 4+0
A10: ОУД.04 | B10: Математика | C10: 246 | H10: 234 | I10: 6+6
A11: ОУД.05 | B11: История | C11: 138 | H11: 134 | I11: 4+0
A12: ОУД.06 | B12: Физическая культура | C12: 126 | H12: 126 | I12: 0+0
A13: ОУД.07 | B13: Основы безопасности жизнедеятельности | C13: 72 | H13: 70 | I13: 2+0
A14: ОУД.08 | B14: Астрономия | C14: 38 | H14: 36 | I14: 2+0
B15: По выбору из обязательных предметных областей | C15: 460 | H15: 428
A16: ОУД.09 | B16: Информатика | C16: 120 | H16: 108 | I16: 6+6
A17: ОУД.10 | B17: Физика | C17: 146 | H17: 134 | I17: 6+6
A18: ОУД.11 | B18: Естествознание | C18: 112 | H18: 108 | I18: 4+0
A19: ОУД.11.01 | B19: Естествознание/Химия | C19: 74 | H19: 72 | I19: 2+0
A20: ОУД.11.02 | B20: Естествознание/Биология | C20: 38 | H20: 36 | I20: 2+0
A21: ОУД.12 | B21: Родной язык / Родная литература | C21: 82 | H21: 78 | I21: 4+0
A22: ОГСЭ. 00 | B22: Общий гуманитарный и социально-экономический цикл | C22: =SUM(C23:C28) -> 540 | D22: =SUM(D23:D28) -> 468 | E22: 0 | F22: 72 | G22: 0 | H22: 0 | I22: 0
A23: ОГСЭ.01 | B23: Основы философии | C23: 46 | D23: 46
A24: ОГСЭ.02 | B24: История | C24: 46 | D24: 46
A25: ОГСЭ.03 | B25: Иностранный язык в профессиональной деятельности | C25: 172 | D25: 172
A26: ОГСЭ.04 | B26: Физическая культура | C26: 160 | D26: 160
A27: ОГСЭ.05 | B27: Психология общения | C27: 44 | D27: 44
A28: ОГСЭ.06 | B28: Татарский язык в профессиональной деятельности | C28: 72 | F28: 72
A29: ЕН.00 | B29: Математический и общий естественнонаучный цикл | C29: 144 | D29: 144 | E29: 0 | F29: 0 | G29: 0 | H29: 0 | I29: 0
A30: ЕН.01 | B30: Математика | C30: 96 | D30: 96
A31: ЕН.02 | B31: Экологические основы природопользования | C31: 48 | D31: 48
A32: ОП.00 | B32: Общепрофессиональный цикл | C32: =SUM(C33:C48) -> 866 | D32: =SUM(D33:D48) -> 582 | E32: 30 | F32: 234 | G32: 20 | H32: 0 | I32: 0
A33: ОП.01 | B33: Инженерная графика | C33: 64 | D33: 64
A34: ОП.02 | B34: Техническая механика | C34: 112 | D34: 102 | E34: 4+6
A35: ОП.03 | B35: Материаловедение | C35: 50 | D35: 40 | E35: 4+6
A36: ОП.04 | B36: Электротехника и электроника | C36: 50 | D36: 50
A37: ОП.05 | B37: Основы гидравлики и теплотехники | C37: 42 | D37: 42
A38: ОП.06 | B38: Основы агрономии | C38: 52 | D38: 40 | F38: 12
A39: ОП.07 | B39: Основы зоотехнии | C39: 42 | D39: 30 | F39: 12
A40: ОП.08 | B40: Информационные технологии в профессиональной деятельности | C40: 56 | D40: 28 | F40: 28
A41: ОП.09 | B41: Метрология, стандартизация и подтверждение качества | C41: 40 | D41: 40
A42: ОП.10 | B42: Основы экономики, менеджмента и маркетинга | C42: 40 | D42: 40
A43: ОП.11 | B43: Правовые основы профессиональной деятельности | C43: 42 | D43: 24 | F43: 18
A44: ОП.12 | B44: Охрана труда | C44: 56 | D44: 14 | E44: 4+6 | F44: 32
A45: ОП.13 | B45: Безопасность жизнедеятельности | C45: 68 | D45: 68
A46: ОП.14 | B46: Топливо и смазочные материалы | C46: 52 | F46: 42 | G46: 4+6
A47: ОП.15 | B47: Компьютерная инженерная графика | C47: 48 | F47: 48
A48: ОП.16 | B48: Экономика и организация производства | C48: 52 | F48: 42 | G48: 4+6
A49: П.00 | B49: Профессиональный цикл | C49: =C50+C56+C61+C67+C73 -> 2698 | D49: 1626 | E49: 102 | F49: 970 | G49: 0 | H49: 0 | I49: 0
A50: ПМ.01 | B50: Подготовка машин, механизмов, установок, приспособлений к работе, комплектование сборочных единиц | C50: =SUM(C51:C55) -> 1016 | D50: =SUM(D51:D55) -> 386 | E50: 30 | F50: =SUM(F51:F55) -> 600 | G50: =SUM(G51:G55) -> 0 | H50: =SUM(H51:H55) -> 0 | I50: =SUM(I51:I55) -> 0
A51: МДК. 01.01 | B51: Назначение и общее устройство тракторов, автомобилей и сельскохозяйственных машин | C51: 528 | D51: 96 | E51: 6+6 | F51: 420
A52: МДК. 01.02 | B52: Подготовка тракторов и сельскохозяйственных машин и механизмов к работе | C52: 110 | D52: 110
A53: УП.01 | B53: Учебная практика | C53: 216 | D53: 108 | F53: 108
A54: ПП.01 | B54: Производственная практика | C54: 144 | D54: 72 | F54: 72
A55: ПМ.01.Э | B55: Экзамен по модулю | C55: 18 | E55: 6+12
A56: ПМ.02 | B56: Эксплуатация сельскохозяйственной техники | C56: =SUM(C57:C60) -> 512 | D56: =SUM(D57:D60) -> 386 | E56: 30 | F56: =SUM(F57:F60) -> 96 | G56: =SUM(G57:G60) -> 0 | H56: =SUM(H57:H60) -> 0 | I56: =SUM(I57:I60) -> 0
A57: МДК. 02.01 | B57: Комплектование машинно-тракторного агрегата для выполнения сельскохозяйственных работ | C57: 278 | D57: 206 | E57: 6+6 | F57: 60
A58: УП.02 | B58: Учебная практика | C58: 108 | D58: 108
A59: ПП.02 | B59: Производственная практика | C59: 108 | D59: 72 | F59: 36
A60: ПМ.02.Э | B60: Экзамен по модулю | C60: 18 | E60: 6+12
A61: ПМ.03 | B61: Техническое обслуживание и ремонт сельскохозяйственной техники | C61: =SUM(C62:C66) -> 612 | D61: =SUM(D62:D66) -> 540 | E61: 24 | F61: 48 | G61: 0 | H61: 0 | I61: 0
A62: МДК. 03.01 | B62: Система технического обслуживания и ремонта сельскохозяйственных машин и механизмов | C62: 120 | D62: 96 | E62: 6+6 | F62: 12
A63: МДК. 03.02 | B63: Технологические процессы ремонтного производства | C63: 120 | D63: 120
A64: УП.03 | B64: Учебная практика | C64: 180 | D64: 180
A65: ПП.03 | B65: Производственная практика | C65: 180 | D65: 144 | F65: 36
A66: ПМ.03.Э | B66: Экзамен по модулю | C66: 12 | E66: 6+6
A67: ПМ.04 | B67: Освоение одной или нескольких профессий рабочих или должностей служащих | C67: =SUM(C68:C72) -> 414 | D67: =SUM(D68:D72) -> 242 | E67: 18 | F67: 154 | G67: 0 | H67: 0 | I67: 0
A68: МДК. 04.01 | B68: Освоение профессии рабочих 19205 Тракторист-машинист сельскохозяйственного производства | C68: 94 | D68: 94
A69: МДК. 04.02 | B69: Освоение профессии рабочих 11442 Водитель автомобиля | C69: 230 | D69: 76 | F69: 154
A70: УП.04 | B70: Учебная практика | C70: 36 | D70: 36
A71: ПП.04 | B71: Производственная практика | C71: 36 | D71: 36
A72: ПМ.04.ЭК | B72: Квалификационный экзамен | C72: 18 | E72: 6+12
A73: ПДП | B73: Преддипломная практика | C73: 144 | D73: 72 | F73: 72
A74: ГИА | B74: Государственная итоговая аттестация | C74: 216 | D74: 216
C75: =C5+C22+C29+C32+C49+C74 -> 5940 | D75: =D5+D22+D29+D32+D49+D74 -> 3036 | E75: =E5+E22+E29+E32+E49 -> 132 | F75: 1276 | G75: 20 | H75: 1404 | I75: 72

Sheet Сводные данные
A1: Сводные данные по бюджету времени (в неделях/часах)
A3: Курсы | B3: Обучение по дисциплинам и междисциплинарным курсам (в том числе консультации) | C3: Практика | E3: Промежуточная аттестация (экзамены) | F3: Государственная итоговая аттестация | G3: Всего (по курсам) | H3: Каникулы
C4: Учебная | D4: Производ-ственная
C6: Учебная | D6: Производ-ственная
A7: 1 | B7: 2 | C7: 3 | D7: 4 | E7: 5 | F7: 6 | G7: 7 | H7: 8
A8: I курс | B8: 40,3 / 1452 | C8: - | D8: - | E8: 0,7 / 24 | F8: - | G8: 41 / 1476 | H8: 11
A9: II курс | B9: 34,7 / 1248 | C9: 4 / 144 | D9: 2 / 72 | E9: 0,3 / 12 | F9: - | G9: 41 / 1476 | H9: 11
A10: III курс | B10: 28,8 / 1038 | C10: 6 / 216 | D10: 6 / 216 | E10: 1,2 / 42 | F10: - | G10: 42 / 1512 | H10: 10
A11: IV курс | B11: 20,3 / 732 | C11: 5 / 180 | D11: 9 / 324 | E11: 0,7 / 24 | F11: 6 / 216 | G11: 41 / 1476 | H11: 2
A12: Всего | B12: 124,1 / 4470 | C12: 15 / 540 | D12: 17 / 612 | E12: 2,9 / 102 | F12: 6 / 216 | G12: 165 / 5940 | H12: 34

Sheet Сводные данные (2)
A1: 1. Сводные данные по бюджету времени (в неделях)
A3: Курсы | B3: Обучение по дисциплинам и междисциплинарным курсам | C3: Учебная практика | D3: Производственная практика | F3: Промежуточная аттестация | G3: Государственная итоговая аттестация | H3: Каникулы | I3: Всего (по курсам)
D4: по профилю специальности | E4: преддипломная
D6: Учебная | E6: Производ-ственная
A7: 1 | B7: 2 | C7: 4 | D7: 5 | E7: 6 | F7: 7 | G7: 8 | H7: 9 | I7: 10
A8: I курс | B8: 41 | C8: 0 | D8: 0 | E8: 0 | F8: 0 | G8: 0 | H8: 11 | I8: =SUM(B8:H8) -> 52
A9: II курс | B9: 35 | C9: 4 | D9: 2 | E9: 0 | F9: 0 | G9: 0 | H9: 11 | I9: =SUM(B9:H9) -> 52
A10: III курс | B10: 30 | C10: 6 | D10: 6 | E10: 0 | F10: 0 | G10: 0 | H10: 10 | I10: 52
A11: IV курс | B11: 21 | C11: 5 | D11: 5 | E11: 4 | F11: 0 | G11: 6 | H11: 2 | I11: 43
A12: Всего | B12: =SUM(B8:B11) -> 127 | C12: =SUM(C8:C11) -> 15 | D12: 13 | E12: 4 | F12: 0 | G12: 6 | H12: 34 | I12: 199

Sheet Перечень каб. лаб.
A1: 3. Перечень кабинетов, лабораторий и др. для подготовки по специальности среднего профессионального образования
A2: 35.02.16 Эксплуатация и ремонт сельскохозяйственной техники и оборудования
A4: Кабинеты:
A5: - социально-экономических дисциплин;
A6: - иностранного языка;
A7: - информационных технологий в профессиональной деятельности;
A8: - инженерной графики;
A9: - технической механики;
A10: - материаловедения;
A11: - управления транспортным средством и безопасности движения;
A12: - агрономии;
A13: - зоотехнии;
A14: - экологических основ природопользования;
A15: - безопасности жизнедеятельности и охраны труда.
A16: Лаборатории:
A17: - электротехники и электроники;
A18: - метрологии, стандартизации и подтверждения качества;
A19: - гидравлики и теплотехники;
A20: - топлива и смазочных материалов;
A21: - тракторов и автомобилей;
A22: - сельскохозяйственных и мелиоративных машин
A23: - эксплуатации машинно-тракторного парка;
A24: - ремонта машин, оборудования и восстановления деталей;
A25: - технологии и механизации производства продукции растениеводства;
A26: - технологии и механизации производства продукции животноводства.
A27: Мастерские:
A28: - слесарная мастерская;
A29: - сварочная мастерская;
A30: - пункт технического обслуживания и ремонта.
A31: Тренажеры, тренажерные комплексы
A32: - тренажер для выработки навыков и совершенствования техники управления транспортным и мобильным энергетическим средством (в качестве тренажера может использоваться учебное транспортное средство).
A33: Спортивный комплекс
A34: Спортивный зал
A35: Залы:
A36: Библиотека, читальный зал с выходом в интернет
A37: Актовый зал

Sheet Тит. лист
I1: Утверждаю
A2: Директор ГАПОУ “Атнинский
A3: сельскохозяйственный техникум
A4: им. Габдуллы Тукая”
A5: ____________ А.Ф. Каюмов
A6: « » 2018 г.
A9: УЧЕБНЫЙ ПЛАН
A10: основной образовательной программы
A11: среднего профессионального образования
A12: Государственного автономного профессионального образовательного учреждения
A13: “Атнинский сельскохозяйственный техникум им. Габдуллы Тукая”
A14: по специальности среднего профессионального образования
A15: 35.02.16 Эксплуатация и ремонт сельскохозяйственной техники и оборудования
A16: по программе базовой подготовки
I18: Квалификация: техник-механик
I19: Форма обучения - очная
G20: Нормативный срок обучения – 3 года 10 мес.
G21: на базе основного общего образования.
A22: Профиль получаемого профессионального
A23: образования технический
